fUSD/lending_fUSD_20260525
["ID","MTS","AMOUNT","RATE_DAILY","PERIOD"]
[422929448,1779647439000,-2301.87,0.00026735,2]
[422929452,1779647439000,-500.0,0.00026736,2]
[422929449,1779647439000,-500.0,0.00026736,2]
[422929450,1779647439000,-500.0,0.00026736,2]
[422929461,1779647439000,-500.0,0.00026736,2]
[422929455,1779647439000,-500.0,0.00026736,2]
[422929460,1779647439000,-500.0,0.00026736,2]
[422929477,1779647439000,-500.0,0.00026736,2]
[422929465,1779647439000,-527.2240957,0.00026736,2]
[422929463,1779647439000,-500.0,0.00026736,2]
[422929466,1779647439000,-542.23499676,0.00026736,2]
[422929470,1779647439000,-2397.6,0.00026736,2]
[422929469,1779647439000,-2397.6,0.00026736,2]
[422929471,1779647439000,-2397.6,0.00026736,2]
[422929473,1779647439000,-500.0,0.00026736,2]
[422929468,1779647439000,-2397.6,0.00026736,2]
[422929467,1779647439000,-2397.6,0.00026736,2]
[422929472,1779647439000,-2397.6,0.00026736,2]
[422929474,1779647439000,-500.0,0.00026736,2]
[422929475,1779647439000,-500.0,0.00026736,2]
[422929476,1779647439000,-500.0,0.00026736,2]
[422929447,1779647439000,-675.63,0.00026735,2]
[422929464,1779647439000,-500.0,0.00026736,2]
[422929445,1779647439000,-2397.6,0.00026735,2]
[422929417,1779647439000,-500.0,0.00026513,2]
[422929446,1779647439000,-500.0,0.00026735,2]
[422929479,1779647439000,-500.0,0.00026736,2]
[422929415,1779647439000,-500.0,0.00026513,2]
[422929416,1779647439000,-500.0,0.00026513,2]
[422929414,1779647439000,-500.0,0.00026513,2]
[422929419,1779647439000,-500.0,0.00026513,2]
[422929418,1779647439000,-432.37,0.00026513,2]
[422929420,1779647439000,-500.0,0.00026513,2]
[422929421,1779647439000,-610.43,0.00026513,2]
[422929422,1779647439000,-500.0,0.00026513,2]
[422929423,1779647439000,-500.0,0.00026513,2]
[422929424,1779647439000,-500.0,0.00026513,2]
[422929425,1779647439000,-500.0,0.00026513,2]
[422929426,1779647439000,-500.0,0.00026513,2]
[422929427,1779647439000,-675.63,0.00026513,2]
[422929444,1779647439000,-151.0,0.00026734,7]
[422929428,1779647439000,-675.63,0.00026513,2]
[422929430,1779647439000,-675.63,0.00026513,2]
[422929431,1779647439000,-675.63,0.00026513,2]
[422929432,1779647439000,-2301.87,0.00026513,2]
[422929433,1779647439000,-2301.87,0.00026513,2]
[422929434,1779647439000,-2301.87,0.00026513,2]
[422929437,1779647439000,-1342074.515,0.00026514,2]
[422929436,1779647439000,-2301.87,0.00026513,2]
[422929439,1779647439000,-5000.0,0.00026614,2]
[422929435,1779647439000,-2301.87,0.00026513,2]
[422929438,1779647439000,-4368.01298948,0.00026614,2]
[422929440,1779647439000,-5000.0,0.00026614,2]
[422929442,1779647439000,-5000.0,0.00026614,2]
[422929443,1779647439000,-5000.0,0.00026637,2]
[422929441,1779647439000,-5000.0,0.00026614,2]
[422929429,1779647439000,-675.63,0.00026513,2]
[422929478,1779647439000,-500.0,0.00026736,2]
[422929545,1779647439000,-2397.6,0.00027644,2]
[422929484,1779647439000,-675.63,0.00026736,2]
[422929517,1779647439000,-3313.39,0.00027397,10]
[422929515,1779647439000,-4771.28,0.00027397,10]
[422929519,1779647439000,-1589.0,0.00027476,3]
[422929518,1779647439000,-2316.0,0.00027438,3]
[422929520,1779647439000,-2316.0,0.00027476,3]
[422929522,1779647439000,-2316.0,0.00027513,3]
[422929525,1779647439000,-151.0,0.00027544,7]
[422929523,1779647439000,-1588.0,0.00027513,3]
[422929521,1779647439000,-1589.0,0.00027513,3]
[422929526,1779647439000,-151.0,0.00027544,7]
[422929524,1779647439000,-65806.9554463,0.00027544,7]
[422929527,1779647439000,-151.0,0.00027544,7]
[422929528,1779647439000,-198.33,0.0002755,30]
[422929530,1779647439000,-267.11,0.0002755,2]
[422929516,1779647439000,-3976.06,0.00027397,10]
[422929529,1779647439000,-643.61,0.0002755,30]
[422929531,1779647439000,-190.39,0.0002755,30]
[422929533,1779647439000,-187.91,0.0002755,30]
[422929534,1779647439000,-269.12,0.0002755,2]
[422929536,1779647439000,-600.0,0.00027556,60]
[422929537,1779647439000,-1000.0,0.0002757,2]
[422929538,1779647439000,-2382.4559662,0.0002758,2]
[422929539,1779647439000,-500.0,0.00027641,120]
[422929540,1779647439000,-1703.0,0.00027644,5]
[422929542,1779647439000,-500.0,0.00027644,120]
[422929541,1779647439000,-500.0,0.00027644,120]
[422929544,1779647439000,-2397.6,0.00027644,2]
[422929543,1779647439000,-300.0,0.00027644,10]
[422929546,1779647439000,-2397.6,0.00027644,2]
[422929480,1779647439000,-500.0,0.00026736,2]
[422929532,1779647439000,-267.67,0.0002755,2]
[422929514,1779647439000,-1000.0,0.00027397,20]
[422929535,1779647439000,-500.0,0.00027556,60]
[422929512,1779647439000,-13860.09585878,0.00027139,2]
[422929513,1779647439000,-1500.0,0.00027397,2]
[422929483,1779647439000,-500.0,0.00026736,2]
[422929482,1779647439000,-500.0,0.00026736,2]
[422929487,1779647439000,-675.63,0.00026736,2]
[422929481,1779647439000,-299.42,0.00026736,2]
[422929486,1779647439000,-675.63,0.00026736,2]
[422929489,1779647439000,-675.63,0.00026736,2]
[422929490,1779647439000,-2301.87,0.00026736,2]
[422929491,1779647439000,-2301.87,0.00026736,2]
[422929488,1779647439000,-675.63,0.00026736,2]
[422929492,1779647439000,-2301.87,0.00026736,2]
[422929493,1779647439000,-2301.87,0.00026736,2]
[422929495,1779647439000,-2301.87,0.00026736,2]
[422929494,1779647439000,-2301.87,0.00026736,2]
[422929497,1779647439000,-500.0,0.00026835,2]
[422929485,1779647439000,-675.63,0.00026736,2]
[422929500,1779647439000,-500.0,0.00026836,2]
[422929511,1779647439000,-686.0,0.0002712,10]
[422929499,1779647439000,-2397.6,0.00026836,2]
[422929510,1779647439000,-501.0,0.00027018,10]
[422929508,1779647439000,-2301.87,0.00026992,2]
[422929509,1779647439000,-150.0,0.00027,2]
[422929506,1779647439000,-500.0,0.00026992,2]
[422929503,1779647439000,-22179.3887299,0.00026837,2]
[422929507,1779647439000,-675.63,0.00026992,2]
[422929496,1779647439000,-1500000.0,0.00026737,2]
[422929502,1779647439000,-2301.87,0.00026836,2]
[422929505,1779647439000,-2397.6,0.00026992,2]
[422929501,1779647439000,-675.63,0.00026836,2]
[422929504,1779647439000,-1359.0253834,0.00026837,2]
[422929498,1779647439000,-500.0,0.00026836,2]
[422929576,1779647440000,-500.0,0.00027789,120]
[422929584,1779647440000,-1000.0,0.0002787,2]
[422929579,1779647440000,-393.0,0.00027813,2]
[422929580,1779647440000,-393.0,0.00027823,2]
[422929575,1779647440000,-500.0,0.00027789,120]
[422929578,1779647440000,-151.0,0.00027797,7]
[422929573,1779647440000,-500.0,0.00027789,120]
[422929583,1779647440000,-2316.0,0.00027861,3]
[422929577,1779647440000,-500.0,0.00027789,120]
[422929574,1779647440000,-500.0,0.00027789,120]
[422929581,1779647440000,-393.0,0.00027848,2]
[422929590,1779647440000,-393.0,0.00027881,2]
[422929585,1779647440000,-606.52,0.00027872,2]
[422929582,1779647440000,-393.0,0.0002785,2]
[422929587,1779647440000,-198.33,0.00027872,2]
[422929589,1779647440000,-190.39,0.00027872,2]
[422929588,1779647440000,-643.61,0.00027872,2]
[422929591,1779647440000,-300.0,0.00027899,10]
[422929594,1779647440000,-4568.09492007,0.000279,2]
[422929593,1779647440000,-180.85304365,0.000279,2]
[422929572,1779647440000,-500.0,0.00027789,120]
[422929595,1779647440000,-800.60831617,0.000279,2]
[422929586,1779647440000,-187.91,0.00027872,2]
[422929571,1779647440000,-151.0,0.00027787,7]
[422929554,1779647440000,-2301.87,0.00027644,2]
[422929569,1779647440000,-150.0,0.00027781,7]
[422929600,1779647440000,-393.0,0.00027939,2]
[422929549,1779647440000,-500.0,0.00027644,120]
[422929548,1779647440000,-500.0,0.00027644,120]
[422929550,1779647440000,-675.63,0.00027644,7]
[422929551,1779647440000,-675.63,0.00027644,7]
[422929547,1779647440000,-500.0,0.00027644,120]
[422929552,1779647440000,-675.63,0.00027644,7]
[422929553,1779647440000,-2301.87,0.00027644,2]
[422929556,1779647440000,-1365.0,0.00027645,5]
[422929558,1779647440000,-163.0,0.0002768,3]
[422929570,1779647440000,-360.0,0.00027783,2]
[422929559,1779647440000,-350.0,0.00027695,2]
[422929557,1779647440000,-567416.59067222,0.00027645,2]
[422929560,1779647440000,-594.18917,0.000277,2]
[422929561,1779647440000,-594.18918,0.000277,2]
[422929562,1779647440000,-594.18917,0.000277,2]
[422929567,1779647440000,-190.39,0.00027711,7]
[422929565,1779647440000,-198.33,0.00027711,7]
[422929563,1779647440000,-350.0,0.00027706,2]
[422929564,1779647440000,-187.91,0.00027711,7]
[422929566,1779647440000,-643.61,0.00027711,7]
[422929568,1779647440000,-393.0,0.00027769,2]
[422929555,1779647440000,-2301.87,0.00027644,2]
[422929597,1779647440000,-2316.0,0.00027909,3]
[422929592,1779647440000,-157.76810589,0.000279,2]
[422929596,1779647440000,-9755.17148627,0.000279,2]
[422929623,1779647440000,-2397.75067079,0.00027999,2]
[422929628,1779647440000,-675.63,0.00027999,7]
[422929631,1779647440000,-675.63,0.00027999,7]
[422929629,1779647440000,-675.63,0.00027999,7]
[422929632,1779647440000,-675.85964888,0.00027999,7]
[422929630,1779647440000,-675.63,0.00027999,7]
[422929634,1779647440000,-2301.87,0.00027999,2]
[422929633,1779647440000,-2301.87,0.00027999,2]
[422929637,1779647440000,-2301.87,0.00027999,2]
[422929635,1779647440000,-2301.87,0.00027999,2]
[422929626,1779647440000,-675.63,0.00027999,7]
[422929638,1779647440000,-2301.87,0.00027999,2]
[422929636,1779647440000,-2301.87,0.00027999,2]
[422929640,1779647440000,-351539.15546833,0.00028,120]
[422929643,1779647440000,-2136.06160953,0.00028,120]
[422929642,1779647440000,-767.37,0.00028,120]
[422929641,1779647440000,-4446457.19246642,0.00028,120]
[422929644,1779647440000,-920.709481,0.00013351,2]
[422929647,1779647440000,-5907.33127411,0.00028,120]
[422929645,1779647440000,-319.91277971,0.0002778,10]
[422929646,1779647440000,-252.08722029,0.0002778,10]
[422929599,1779647440000,-393.0,0.00027918,2]
[422929639,1779647440000,-2301.89360477,0.00027999,2]
[422929625,1779647440000,-480.62155049,0.00027999,120]
[422929627,1779647440000,-675.63,0.00027999,7]
[422929624,1779647440000,-500.0,0.00027999,120]
[422929598,1779647440000,-152.0,0.0002791,7]
[422929601,1779647440000,-393.0,0.00027947,2]
[422929603,1779647440000,-230.0,0.00027967,3]
[422929606,1779647440000,-594.18917,0.00027978,2]
[422929607,1779647440000,-594.18918,0.00027978,2]
[422929648,1779647440000,-595063.32037793,0.00028,120]
[422929602,1779647440000,-1182.0,0.00027967,3]
[422929604,1779647440000,-1000.0,0.0002797,2]
[422929622,1779647440000,-2397.6,0.00027999,2]
[422929608,1779647440000,-594.18917,0.00027978,2]
[422929609,1779647440000,-152.0,0.00027997,7]
[422929611,1779647440000,-151.0,0.00027997,7]
[422929605,1779647440000,-393.0,0.00027976,2]
[422929610,1779647440000,-152.0,0.00027997,7]
[422929616,1779647440000,-594.49475119,0.00027999,120]
[422929613,1779647440000,-500.0,0.00027999,120]
[422929618,1779647440000,-2397.6,0.00027999,2]
[422929614,1779647440000,-500.0,0.00027999,120]
[422929620,1779647440000,-2397.6,0.00027999,2]
[422929619,1779647440000,-2397.6,0.00027999,2]
[422929617,1779647440000,-2397.6,0.00027999,2]
[422929615,1779647440000,-500.0,0.00027999,120]
[422929612,1779647440000,-500.0,0.00027999,120]
[422929621,1779647440000,-2397.6,0.00027999,2]
[422929669,1779647443000,-1042.47342326,0.00027139,2]
[422929664,1779647443000,-150.0,0.00024658,2]
[422929663,1779647443000,-164.23754664,0.00010286,2]
[422929665,1779647443000,-75.9741182,0.00024658,2]
[422929667,1779647443000,-150.0,0.0002589,2]
[422929668,1779647443000,-8197.59048259,0.00027139,2]
[422929670,1779647443000,-150.0,0.00027185,2]
[422929671,1779647443000,-268.85,0.0002755,2]
[422929666,1779647443000,-125.6558818,0.00024658,2]
[422929674,1779647443000,-186.93,0.00027711,7]
[422929680,1779647443000,-27955.44005269,0.00028,120]
[422929679,1779647443000,-151.0,0.00027999,2]
[422929677,1779647443000,-187.9,0.00027872,2]
[422929672,1779647443000,-186.93,0.0002755,30]
[422929676,1779647443000,-186.93,0.00027872,2]
[422929675,1779647443000,-187.9,0.00027711,7]
[422929673,1779647443000,-187.9,0.0002755,30]
[422929678,1779647443000,-157.76810589,0.00027999,2]
[422929683,1779647446000,-1500.0,0.00027397,2]
[422929682,1779647446000,-2288.20762094,0.000149,2]
[422929684,1779647446000,-1000.0,0.00027545,2]
[422929685,1779647446000,-7786.94237906,0.00028,120]
[422929689,1779647588000,3793.204041,7.945e-05,2]
[422929709,1779647836000,584.41,8.089e-05,2]
[422929708,1779647836000,584.41,7.721e-05,2]
[422929707,1779647836000,584.41,7.353e-05,2]
[422929706,1779647836000,584.41,6.986e-05,2]
[422929710,1779647836000,584.41,8.456e-05,2]
[422929719,1779647904000,150.0,8.302e-05,2]
[422929721,1779648068000,3945.294884,7.945e-05,2]
[422929722,1779648086000,150.0,8.302e-05,2]
[422929733,1779648397000,150.0,8.302e-05,2]
[422929741,1779648514000,159.84,7.973e-05,2]
[422929856,1779648632000,-191.58,0.00011463,2]
[422929817,1779648632000,-219.03,0.00010297,2]
[422929819,1779648632000,-843.0,0.00010355,2]
[422929821,1779648632000,-1680.0,0.00010355,2]
[422929829,1779648632000,-191.10191603,0.0001072,2]
[422929845,1779648632000,-364.15,0.00011142,2]
[422929831,1779648632000,-274.28086616,0.00010725,2]
[422929844,1779648632000,-500.0,0.00011059,2]
[422929847,1779648632000,-208.8304494,0.00011167,2]
[422929849,1779648632000,-900.6,0.00011194,2]
[422929815,1779648632000,-584.41,0.00010295,2]
[422929837,1779648632000,-1010.43,0.00010838,2]
[422929841,1779648632000,-1413.27,0.0001105,2]
[422929835,1779648632000,-2451.37,0.0001081,2]
[422929851,1779648632000,-200.0,0.00011368,2]
[422929839,1779648632000,-584.41,0.0001103,2]
[422929853,1779648632000,-175.0,0.00011391,2]
[422929834,1779648632000,-481.32,0.000108,2]
[422929855,1779648632000,-584.41,0.00011398,2]
[422929867,1779648632000,-15562.62,0.00011525,2]
[422929869,1779648632000,-212.98,0.00011527,2]
[422929827,1779648632000,-584.41,0.00010662,2]
[422929809,1779648632000,-584.41,9.927e-05,2]
[422929812,1779648632000,-1394.0,0.00010024,2]
[422929861,1779648632000,-9214.9,0.000115,2]
[422929796,1779648632000,-196.24003769,8.625e-05,2]
[422929797,1779648632000,-255.0,8.778e-05,2]
[422929795,1779648632000,-150.0,8.559e-05,2]
[422929800,1779648632000,-546.94898589,9.414e-05,2]
[422929798,1779648632000,-584.41,8.824e-05,2]
[422929799,1779648632000,-584.41,9.192e-05,2]
[422929801,1779648632000,-319.32572032,9.414e-05,2]
[422929803,1779648632000,-300.0,9.414e-05,2]
[422929814,1779648632000,-12851.0,0.00010187,2]
[422929810,1779648632000,-416.596733,0.0001,2]
[422929807,1779648632000,-250.0,9.415e-05,2]
[422929802,1779648632000,-333.72529379,9.414e-05,2]
[422929804,1779648632000,-1200.0,9.414e-05,2]
[422929805,1779648632000,-250.0,9.415e-05,2]
[422929808,1779648632000,-584.41,9.559e-05,2]
[422929811,1779648632000,-163.48,0.0001,2]
[422929813,1779648632000,-17482.0,0.00010044,2]
[422929823,1779648632000,-420.0,0.00010355,2]
[422929825,1779648632000,-150.0,0.00010476,2]
[422929806,1779648632000,-154.02660377,9.415e-05,2]
[422929873,1779648632000,-62478.92,0.00011539,2]
[422929886,1779648632000,-500.0,0.00011892,2]
[422929865,1779648632000,-352.24,0.00011516,2]
[422929906,1779648632000,-150.0,0.00013629,2]
[422929899,1779648632000,-584.41,0.00012868,2]
[422929908,1779648632000,-200.0,0.00013699,2]
[422929905,1779648632000,-150.0,0.00013629,2]
[422929909,1779648632000,-167.05,0.00013699,2]
[422929910,1779648632000,-433.15372909,0.00013844,2]
[422929911,1779648632000,-309.0,0.0001387,2]
[422929912,1779648632000,-191.10191603,0.00013877,2]
[422929915,1779648632000,-500.0,0.00013889,2]
[422929902,1779648632000,-584.41,0.00013236,2]
[422929918,1779648632000,-500.0,0.00013889,2]
[422929917,1779648632000,-415.48850918,0.00013889,2]
[422929916,1779648632000,-500.0,0.00013889,2]
[422929921,1779648632000,-500.0,0.00013889,2]
[422929920,1779648632000,-500.0,0.00013889,2]
[422929919,1779648632000,-500.0,0.00013889,2]
[422929923,1779648632000,-500.0,0.00013889,2]
[422929922,1779648632000,-432.37,0.00013889,2]
[422929924,1779648632000,-500.0,0.00013889,2]
[422929875,1779648632000,-160.38,0.00011618,2]
[422929913,1779648632000,-2501.85,0.00013888,2]
[422929904,1779648632000,-150.0,0.00013629,2]
[422929914,1779648632000,-500.0,0.00013889,2]
[422929907,1779648632000,-270.84985147,0.00013629,2]
[422929870,1779648632000,-1003.1640441,0.00011538,2]
[422929900,1779648632000,-212.98,0.00012968,2]
[422929858,1779648632000,-191.10191603,0.00011468,2]
[422929876,1779648632000,-500.0,0.00011618,2]
[422929862,1779648632000,-255.0,0.00011503,2]
[422929889,1779648632000,-500.0,0.00012166,2]
[422929878,1779648632000,-584.41,0.00011765,2]
[422929892,1779648632000,-584.41,0.00012501,2]
[422929880,1779648632000,-500.0,0.00011812,3]
[422929894,1779648632000,-150.0,0.00012551,2]
[422929890,1779648632000,-500.0,0.0001244,2]
[422929884,1779648632000,-215.34753388,0.0001189,2]
[422929895,1779648632000,-150.0,0.00012551,2]
[422929896,1779648632000,-900.6,0.00012593,2]
[422929882,1779648632000,-160.0,0.0001189,2]
[422929888,1779648632000,-584.41,0.00012133,2]
[422929925,1779648632000,-610.43,0.00013889,2]
[422929898,1779648632000,-433.0,0.00012634,2]
[422929897,1779648632000,-191.58,0.0001261,2]
[422929901,1779648632000,-356.68,0.00013116,2]
[422929903,1779648632000,-584.41,0.00013604,2]
[422929964,1779648633000,-500.0,0.00013889,2]
[422929966,1779648633000,-500.0,0.00013889,2]
[422929961,1779648633000,-2501.85,0.00013889,2]
[422929962,1779648633000,-2501.85,0.00013889,2]
[422929958,1779648633000,-542.23499676,0.00013889,2]
[422929956,1779648633000,-2301.87,0.00013889,2]
[422929960,1779648633000,-2501.85,0.00013889,2]
[422929959,1779648633000,-2501.85,0.00013889,2]
[422929955,1779648633000,-2301.87,0.00013889,2]
[422929969,1779648633000,-500.0,0.00013889,2]
[422929957,1779648633000,-2301.87,0.00013889,2]
[422929968,1779648633000,-500.0,0.00013889,2]
[422929989,1779648633000,-500.0,0.00013889,2]
[422929972,1779648633000,-500.0,0.00013889,2]
[422929970,1779648633000,-415.07364693,0.00013889,2]
[422929971,1779648633000,-500.0,0.00013889,2]
[422929976,1779648633000,-500.0,0.00013889,2]
[422929974,1779648633000,-500.0,0.00013889,2]
[422929973,1779648633000,-500.0,0.00013889,2]
[422929975,1779648633000,-500.0,0.00013889,2]
[422929978,1779648633000,-500.0,0.00013889,2]
[422929988,1779648633000,-500.0,0.00013889,2]
[422929979,1779648633000,-500.0,0.00013889,2]
[422929980,1779648633000,-500.0,0.00013889,2]
[422929965,1779648633000,-417.97265625,0.00013889,2]
[422929967,1779648633000,-500.0,0.00013889,2]
[422929953,1779648633000,-2301.87,0.00013889,2]
[422929928,1779648633000,-641.91,0.00013889,2]
[422929963,1779648633000,-2501.85,0.00013889,2]
[422929933,1779648633000,-524.77,0.00013889,2]
[422929926,1779648633000,-641.91,0.00013889,2]
[422929930,1779648633000,-641.91,0.00013889,2]
[422929927,1779648633000,-641.91,0.00013889,2]
[422929929,1779648633000,-641.91,0.00013889,2]
[422929931,1779648633000,-524.77,0.00013889,2]
[422929932,1779648633000,-524.77,0.00013889,2]
[422929935,1779648633000,-524.77,0.00013889,2]
[422929934,1779648633000,-524.77,0.00013889,2]
[422929936,1779648633000,-524.77,0.00013889,2]
[422929937,1779648633000,-500.0,0.00013889,2]
[422929938,1779648633000,-500.0,0.00013889,2]
[422929954,1779648633000,-2301.87,0.00013889,2]
[422929941,1779648633000,-500.0,0.00013889,2]
[422929939,1779648633000,-500.0,0.00013889,2]
[422929942,1779648633000,-500.0,0.00013889,2]
[422929943,1779648633000,-500.0,0.00013889,2]
[422929945,1779648633000,-500.0,0.00013889,2]
[422929944,1779648633000,-500.0,0.00013889,2]
[422929946,1779648633000,-500.0,0.00013889,2]
[422929947,1779648633000,-527.2240957,0.00013889,2]
[422929951,1779648633000,-675.63,0.00013889,2]
[422929950,1779648633000,-675.63,0.00013889,2]
[422929948,1779648633000,-675.63,0.00013889,2]
[422929949,1779648633000,-675.63,0.00013889,2]
[422929952,1779648633000,-675.63,0.00013889,2]
[422929940,1779648633000,-500.0,0.00013889,2]
[422929982,1779648633000,-500.0,0.00013889,2]
[422929983,1779648633000,-500.0,0.00013889,2]
[422929987,1779648633000,-500.0,0.00013889,2]
[422930017,1779648633000,-500.0,0.00013889,2]
[422930014,1779648633000,-500.0,0.00013889,2]
[422930024,1779648633000,-521.50785736,0.00013889,2]
[422930020,1779648633000,-500.0,0.00013889,2]
[422930019,1779648633000,-500.0,0.00013889,2]
[422930021,1779648633000,-156.21168621,0.00013889,2]
[422930023,1779648633000,-342.3190713,0.00013889,2]
[422930018,1779648633000,-500.0,0.00013889,2]
[422930022,1779648633000,-206.8167115,0.00013889,2]
[422930025,1779648633000,-432.11036869,0.00013889,2]
[422930027,1779648633000,-500.0,0.00013889,2]
[422930029,1779648633000,-532.1391644,0.00013889,2]
[422930016,1779648633000,-277.42814658,0.00013889,2]
[422930026,1779648633000,-500.0,0.00013889,2]
[422930031,1779648633000,-641.91,0.00013946,2]
[422930030,1779648633000,-151.0,0.00013944,2]
[422930035,1779648633000,-641.91,0.00013946,2]
[422930037,1779648633000,-641.91,0.00013946,2]
[422930033,1779648633000,-641.91,0.00013946,2]
[422930036,1779648633000,-641.91,0.00013946,2]
[422930038,1779648633000,-524.77,0.00013946,2]
[422929981,1779648633000,-500.0,0.00013889,2]
[422930034,1779648633000,-641.91,0.00013946,2]
[422930041,1779648633000,-524.77,0.00013946,2]
[422930039,1779648633000,-524.77,0.00013946,2]
[422930040,1779648633000,-524.77,0.00013946,2]
[422930028,1779648633000,-500.0,0.00013889,2]
[422930015,1779648633000,-500.0,0.00013889,2]
[422930032,1779648633000,-641.91,0.00013946,2]
[422930008,1779648633000,-500.0,0.00013889,2]
[422930013,1779648633000,-300.0,0.00013889,2]
[422929986,1779648633000,-500.0,0.00013889,2]
[422929977,1779648633000,-500.0,0.00013889,2]
[422929984,1779648633000,-500.0,0.00013889,2]
[422929990,1779648633000,-500.0,0.00013889,2]
[422929993,1779648633000,-500.0,0.00013889,2]
[422929991,1779648633000,-500.0,0.00013889,2]
[422929992,1779648633000,-500.0,0.00013889,2]
[422929994,1779648633000,-500.0,0.00013889,2]
[422930000,1779648633000,-500.0,0.00013889,2]
[422929995,1779648633000,-500.0,0.00013889,2]
[422929996,1779648633000,-500.0,0.00013889,2]
[422929997,1779648633000,-506.33781528,0.00013889,2]
[422929985,1779648633000,-500.0,0.00013889,2]
[422929998,1779648633000,-500.0,0.00013889,2]
[422929999,1779648633000,-500.0,0.00013889,2]
[422930005,1779648633000,-500.0,0.00013889,2]
[422930006,1779648633000,-500.0,0.00013889,2]
[422930009,1779648633000,-500.0,0.00013889,2]
[422930002,1779648633000,-500.0,0.00013889,2]
[422930010,1779648633000,-500.0,0.00013889,2]
[422930007,1779648633000,-500.0,0.00013889,2]
[422930004,1779648633000,-500.0,0.00013889,2]
[422930001,1779648633000,-292.58085938,0.00013889,2]
[422930003,1779648633000,-500.0,0.00013889,2]
[422930012,1779648633000,-500.0,0.00013889,2]
[422930011,1779648633000,-500.0,0.00013889,2]
[422930076,1779648634000,-524.77,0.00014998,2]
[422930077,1779648634000,-500.0,0.00014999,2]
[422930074,1779648634000,-500.0,0.00014986,2]
[422930075,1779648634000,-500.0,0.00014986,2]
[422930066,1779648634000,-584.41,0.00013971,2]
[422930071,1779648634000,-231.358075,0.00014699,2]
[422930072,1779648634000,-179.477779,0.00014699,2]
[422930067,1779648634000,-900.6,0.00013992,2]
[422930068,1779648634000,-167.05,0.00014041,2]
[422930070,1779648634000,-212.98,0.00014408,2]
[422930078,1779648634000,-299.42,0.00014999,2]
[422930088,1779648634000,-160.38,0.00017427,2]
[422930081,1779648634000,-900.6,0.00015391,2]
[422930086,1779648634000,-900.6,0.00016791,2]
[422930085,1779648634000,-433.15372909,0.00016187,2]
[422930082,1779648634000,-364.15,0.00015598,2]
[422930079,1779648634000,-500.0,0.00014999,2]
[422930087,1779648634000,-212.98,0.0001729,2]
[422930084,1779648634000,-593.4,0.00015918,2]
[422930089,1779648634000,-289.7638191,0.00017937,2]
[422930073,1779648634000,-500.0,0.00014986,2]
[422930080,1779648634000,-200.214666,0.00015098,2]
[422930065,1779648634000,-2501.85,0.00013946,2]
[422930052,1779648634000,-2301.87,0.00013946,2]
[422930061,1779648634000,-2501.85,0.00013946,2]
[422930083,1779648634000,-212.98,0.00015849,2]
[422930050,1779648634000,-675.63,0.00013946,2]
[422930042,1779648634000,-524.77,0.00013946,2]
[422930049,1779648634000,-675.63,0.00013946,2]
[422930048,1779648634000,-675.63,0.00013946,2]
[422930044,1779648634000,-500.0,0.00013946,2]